[Event "Titled Tuesday Blitz May 9 Late 2023"]
[White "Matlakov, Maxim"]
[Black "Ismagilov, Damir"]
[WhiteFideId "4168003"]
[BlackFideId "34199982"]
[WhiteElo "2666"]
[BlackElo "2143"]
[Result "1-0"]
[Round "04"]
[TimeControl "180+2"]
[Date "2023.05.09"]
[WhiteClock "0:02:05"]
[BlackClock "0:00:10"]

1. b3 {[%clk 0:03:00]}  d5 {[%clk 0:02:56]} 2. Bb2 {[%clk 0:03:00]}  Nf6 {[%clk 0:02:56]} 3. d3 {[%clk 0:03:01]}  c5 {[%clk 0:02:56]} 4. Nd2 {[%clk 0:03:00]}  Nc6 {[%clk 0:02:57]} 5. Ngf3 {[%clk 0:03:00]}  g6 {[%clk 0:02:56]} 6. e4 {[%clk 0:03:00]}  dxe4 {[%clk 0:02:56]} 7. dxe4 {[%clk 0:02:59]}  Bg7 {[%clk 0:02:55]} 8. Bb5 {[%clk 0:02:59]}  Bd7 {[%clk 0:02:48]} 9. Qe2 {[%clk 0:02:59]}  O-O {[%clk 0:02:46]} 10. O-O-O {[%clk 0:02:59]}  Qa5 {[%clk 0:02:27]} 11. a3 {[%clk 0:02:48]}  Nd4 {[%clk 0:02:10]} 12. Nxd4 {[%clk 0:02:45]}  cxd4 {[%clk 0:02:09]} 13. Bxd7 {[%clk 0:02:42]}  Nxd7 {[%clk 0:02:10]} 14. Nc4 {[%clk 0:02:43]}  Qa6 {[%clk 0:02:06]} 15. Bxd4 {[%clk 0:02:41]}  Bxd4 {[%clk 0:02:02]} 16. Rxd4 {[%clk 0:02:42]}  Ne5 {[%clk 0:01:57]} 17. Kb2 {[%clk 0:02:41]}  Rac8 {[%clk 0:01:57]} 18. Rhd1 {[%clk 0:02:39]}  Nxc4+ {[%clk 0:01:56]} 19. Rxc4 {[%clk 0:02:40]}  Rxc4 {[%clk 0:01:52]} 20. Qxc4 {[%clk 0:02:41]}  Qf6+ {[%clk 0:01:52]} 21. Qd4 {[%clk 0:02:41]}  Qg5 {[%clk 0:01:33]} 22. g3 {[%clk 0:02:40]}  Qg4 {[%clk 0:01:18]} 23. Rd2 {[%clk 0:02:36]}  Qh3 {[%clk 0:01:16]} 24. f4 {[%clk 0:02:35]}  Qf1 {[%clk 0:01:15]} 25. Qxa7 {[%clk 0:02:34]}  Qe1 {[%clk 0:01:13]} 26. Qd4 {[%clk 0:02:33]}  Rc8 {[%clk 0:01:11]} 27. a4 {[%clk 0:02:32]}  b5 {[%clk 0:01:10]} 28. a5 {[%clk 0:02:29]}  Qf1 {[%clk 0:00:58]} 29. Qd3 {[%clk 0:02:24]}  Qe1 {[%clk 0:00:54]} 30. a6 {[%clk 0:02:21]}  Ra8 {[%clk 0:00:51]} 31. Rd1 {[%clk 0:02:21]}  Qa5 {[%clk 0:00:47]} 32. Ra1 {[%clk 0:02:21]}  Qb6 {[%clk 0:00:44]} 33. Qc3 {[%clk 0:02:10]}  b4 {[%clk 0:00:36]} 34. Qc4 {[%clk 0:02:09]}  Ra7 {[%clk 0:00:36]} 35. Ra4 {[%clk 0:02:07]}  h5 {[%clk 0:00:30]} 36. Rxb4 {[%clk 0:02:05]}  Qxa6 {[%clk 0:00:30]} 37. Qxa6 {[%clk 0:02:05]}  Rxa6 {[%clk 0:00:30]} 38. Rb7 {[%clk 0:02:05]}  Kf8 {[%clk 0:00:30]} 39. b4 {[%clk 0:02:06]}  Rd6 {[%clk 0:00:29]} 40. b5 {[%clk 0:02:05]}  f6 {[%clk 0:00:26]} 41. b6 {[%clk 0:02:04]}  g5 {[%clk 0:00:26]} 42. fxg5 {[%clk 0:02:04]}  fxg5 {[%clk 0:00:27]} 43. c4 {[%clk 0:02:05]}  h4 {[%clk 0:00:21]} 44. gxh4 {[%clk 0:02:04]}  gxh4 {[%clk 0:00:22]} 45. c5 {[%clk 0:02:05]}  Rd2+ {[%clk 0:00:22]} 46. Kc3 {[%clk 0:02:05]}  Rxh2 {[%clk 0:00:22]} 47. c6 {[%clk 0:02:06]}  Rh1 {[%clk 0:00:16]} 48. c7 {[%clk 0:02:06]}  Kf7 {[%clk 0:00:14]} 49. Kb2 {[%clk 0:02:04]}  Rh2+ {[%clk 0:00:10]} 50. Kb3 {[%clk 0:02:05]}  Rh3+ {[%clk 0:00:11]} 51. Kb4 {[%clk 0:02:05]}  Rh1 {[%clk 0:00:09]} 52. c8=Q {[%clk 0:02:05]}  Rb1+ {[%clk 0:00:10]} 53. Ka3 {[%clk 0:02:05]}  Ra1+ {[%clk 0:00:11]} 54. Kb2 {[%clk 0:02:05]}  Rc1 {[%clk 0:00:10]} 55. Kxc1 {[%clk 0:02:05]} 1-0


[Site "https://www.chess.com"]

[Event "Titled Tuesday Blitz May 9 Late 2023"]
[White "Prohaszka, Peter"]
[Black "Grycel, Kamil"]
[WhiteFideId "726265"]
[BlackFideId "1115499"]
[WhiteElo "2626"]
[BlackElo "2520"]
[Result "1-0"]
[Round "04"]
[TimeControl "180+2"]
[Date "2023.05.09"]
[WhiteClock "0:00:06"]
[BlackClock "0:00:01"]

1. d4 {[%clk 0:02:51]}  d6 {[%clk 0:02:59]} 2. Nf3 {[%clk 0:02:49]}  Bg4 {[%clk 0:02:58]} 3. c4 {[%clk 0:02:44]}  c6 {[%clk 0:02:57]} 4. g3 {[%clk 0:02:38]}  Nf6 {[%clk 0:02:54]} 5. Bg2 {[%clk 0:02:38]}  e6 {[%clk 0:02:53]} 6. Qb3 {[%clk 0:02:36]}  Qb6 {[%clk 0:02:52]} 7. Nc3 {[%clk 0:02:36]}  d5 {[%clk 0:02:47]} 8. c5 {[%clk 0:02:35]}  Qc7 {[%clk 0:02:33]} 9. Bf4 {[%clk 0:02:34]}  Qc8 {[%clk 0:02:34]} 10. a4 {[%clk 0:02:22]}  Nbd7 {[%clk 0:02:33]} 11. a5 {[%clk 0:02:22]}  a6 {[%clk 0:02:33]} 12. Na4 {[%clk 0:02:04]}  Be7 {[%clk 0:02:32]} 13. Ne5 {[%clk 0:02:00]}  Bf5 {[%clk 0:02:23]} 14. O-O {[%clk 0:01:50]}  O-O {[%clk 0:02:22]} 15. Rfc1 {[%clk 0:01:45]}  Bd8 {[%clk 0:02:11]} 16. Nb6 {[%clk 0:01:32]}  Nxb6 {[%clk 0:02:00]} 17. cxb6 {[%clk 0:01:32]}  Rb8 {[%clk 0:01:10]} 18. Nxc6 {[%clk 0:01:16]}  bxc6 {[%clk 0:01:10]} 19. Bxb8 {[%clk 0:01:16]}  Qxb8 {[%clk 0:01:11]} 20. Rxc6 {[%clk 0:01:16]}  Ne4 {[%clk 0:01:05]} 21. Qb4 {[%clk 0:01:02]}  Bf6 {[%clk 0:00:53]} 22. Rac1 {[%clk 0:00:59]}  e5 {[%clk 0:00:34]} 23. Bxe4 {[%clk 0:00:48]}  dxe4 {[%clk 0:00:33]} 24. d5 {[%clk 0:00:48]}  e3 {[%clk 0:00:25]} 25. f3 {[%clk 0:00:44]}  e4 {[%clk 0:00:21]} 26. fxe4 {[%clk 0:00:34]}  Bh3 {[%clk 0:00:21]} 27. b7 {[%clk 0:00:25]}  Be5 {[%clk 0:00:17]} 28. d6 {[%clk 0:00:18]}  h5 {[%clk 0:00:14]} 29. Qc5 {[%clk 0:00:11]}  f6 {[%clk 0:00:13]} 30. Qd5+ {[%clk 0:00:08]}  Kh7 {[%clk 0:00:13]} 31. Rc7 {[%clk 0:00:08]}  h4 {[%clk 0:00:12]} 32. Qc6 {[%clk 0:00:07]}  hxg3 {[%clk 0:00:10]} 33. hxg3 {[%clk 0:00:07]}  Bxg3 {[%clk 0:00:10]} 34. Rc8 {[%clk 0:00:07]}  Bxc8 {[%clk 0:00:10]} 35. bxc8=Q {[%clk 0:00:08]}  Rxc8 {[%clk 0:00:10]} 36. Qxc8 {[%clk 0:00:09]}  Qxb2 {[%clk 0:00:10]} 37. Qh3+ {[%clk 0:00:09]}  Kg6 {[%clk 0:00:05]} 38. Qxg3+ {[%clk 0:00:08]}  Kf7 {[%clk 0:00:04]} 39. Rc7+ {[%clk 0:00:08]}  Ke6 {[%clk 0:00:05]} 40. Qxe3 {[%clk 0:00:07]}  Qb1+ {[%clk 0:00:03]} 41. Kg2 {[%clk 0:00:07]}  Qa1 {[%clk 0:00:03]} 42. Rc3 {[%clk 0:00:06]}  Qxa5 {[%clk 0:00:02]} 43. Rd3 {[%clk 0:00:06]}  Qe5 {[%clk 0:00:01]} 44. d7 {[%clk 0:00:06]} 1-0


[Site "https://www.chess.com"]

[Event "Titled Tuesday Blitz May 9 Late 2023"]
[White "Bambino Filho, Antonio Carlos"]
[Black "Harshavardhan G B"]
[WhiteFideId "2113163"]
[BlackFideId "25059009"]
[WhiteElo "2513"]
[BlackElo "2323"]
[Result "0-1"]
[Round "04"]
[TimeControl "180+2"]
[Date "2023.05.09"]
[WhiteClock "0:01:49"]
[BlackClock "0:02:00"]

1. d4 {[%clk 0:03:00]}  Nf6 {[%clk 0:02:56]} 2. c4 {[%clk 0:02:59]}  g6 {[%clk 0:02:57]} 3. Nc3 {[%clk 0:02:59]}  Bg7 {[%clk 0:02:57]} 4. e4 {[%clk 0:02:59]}  d6 {[%clk 0:02:58]} 5. Nf3 {[%clk 0:02:59]}  O-O {[%clk 0:02:58]} 6. Be2 {[%clk 0:02:57]}  Nbd7 {[%clk 0:02:59]} 7. h3 {[%clk 0:02:52]}  e5 {[%clk 0:02:59]} 8. d5 {[%clk 0:02:53]}  a5 {[%clk 0:02:58]} 9. Be3 {[%clk 0:02:51]}  Nh5 {[%clk 0:02:55]} 10. Qd2 {[%clk 0:02:46]}  f5 {[%clk 0:02:54]} 11. exf5 {[%clk 0:02:40]}  gxf5 {[%clk 0:02:54]} 12. Bg5 {[%clk 0:02:40]}  Nhf6 {[%clk 0:02:51]} 13. Nh4 {[%clk 0:02:35]}  Nc5 {[%clk 0:02:49]} 14. f4 {[%clk 0:02:12]}  Qe8 {[%clk 0:02:47]} 15. O-O {[%clk 0:02:09]}  Nfe4 {[%clk 0:02:44]} 16. Nxe4 {[%clk 0:02:09]}  Nxe4 {[%clk 0:02:45]} 17. Qc2 {[%clk 0:02:08]}  h6 {[%clk 0:02:22]} 18. fxe5 {[%clk 0:02:05]}  hxg5 {[%clk 0:02:20]} 19. e6 {[%clk 0:02:02]}  gxh4 {[%clk 0:02:19]} 20. Bd3 {[%clk 0:02:03]}  Bd4+ {[%clk 0:02:18]} 21. Kh1 {[%clk 0:02:03]}  Ng3+ {[%clk 0:02:18]} 22. Kh2 {[%clk 0:02:03]}  Qh5 {[%clk 0:02:07]} 23. Rf4 {[%clk 0:02:00]}  Be5 {[%clk 0:02:07]} 24. Qf2 {[%clk 0:01:49]}  Qg5 {[%clk 0:02:00]} 0-1


[Site "https://www.chess.com"]

[Event "Titled Tuesday Blitz May 9 Late 2023"]
[White "Timmermans, Mark"]
[Black "Dragomirescu, Robin-Alexandru"]
[WhiteFideId "1026399"]
[BlackFideId "1213849"]
[WhiteElo "2460"]
[BlackElo "2356"]
[Result "1-0"]
[Round "04"]
[TimeControl "180+2"]
[Date "2023.05.09"]
[WhiteClock "0:01:07"]
[BlackClock "0:00:43"]

1. e4 {[%clk 0:03:00]}  Nc6 {[%clk 0:02:58]} 2. Nf3 {[%clk 0:02:59]}  f5 {[%clk 0:02:58]} 3. exf5 {[%clk 0:02:46]}  d5 {[%clk 0:02:56]} 4. d4 {[%clk 0:02:46]}  Bxf5 {[%clk 0:02:57]} 5. Bd3 {[%clk 0:02:45]}  Bg4 {[%clk 0:02:57]} 6. h3 {[%clk 0:02:34]}  Bxf3 {[%clk 0:02:25]} 7. Qxf3 {[%clk 0:02:35]}  Nf6 {[%clk 0:02:25]} 8. c3 {[%clk 0:02:32]}  e5 {[%clk 0:02:25]} 9. Qe2 {[%clk 0:02:30]}  Bd6 {[%clk 0:02:19]} 10. dxe5 {[%clk 0:02:27]}  Nxe5 {[%clk 0:02:02]} 11. f4 {[%clk 0:02:26]}  O-O {[%clk 0:01:49]} 12. fxe5 {[%clk 0:02:26]}  Bxe5 {[%clk 0:01:49]} 13. O-O {[%clk 0:02:24]}  Qd6 {[%clk 0:01:48]} 14. Bg5 {[%clk 0:01:54]}  Rae8 {[%clk 0:01:46]} 15. Qd1 {[%clk 0:01:45]}  Qb6+ {[%clk 0:01:40]} 16. Kh1 {[%clk 0:01:45]}  Qxb2 {[%clk 0:01:40]} 17. Nd2 {[%clk 0:01:45]}  Qxc3 {[%clk 0:01:31]} 18. Bb5 {[%clk 0:01:16]}  c6 {[%clk 0:01:19]} 19. Rc1 {[%clk 0:01:13]}  Qg3 {[%clk 0:01:19]} 20. Nf3 {[%clk 0:01:14]}  cxb5 {[%clk 0:01:16]} 21. Bxf6 {[%clk 0:01:14]}  Bxf6 {[%clk 0:01:07]} 22. Qxd5+ {[%clk 0:01:14]}  Kh8 {[%clk 0:01:06]} 23. Rce1 {[%clk 0:01:14]}  Qc7 {[%clk 0:00:47]} 24. Qxb5 {[%clk 0:01:12]}  a6 {[%clk 0:00:43]} 25. Qxe8 {[%clk 0:01:07]} 1-0


[Site "https://www.chess.com"]

[Event "Titled Tuesday Blitz May 9 Late 2023"]
[White "Moore, Nicholas"]
[Black "Lavrik, Dmitry"]
[WhiteFideId "4303709"]
[BlackFideId "24113190"]
[WhiteElo "2505"]
[BlackElo "2345"]
[Result "0-1"]
[Round "04"]
[TimeControl "180+2"]
[Date "2023.05.09"]
[WhiteClock "0:00:03"]
[BlackClock "0:00:35"]

1. d4 {[%clk 0:03:00]}  Nf6 {[%clk 0:02:53]} 2. c4 {[%clk 0:03:01]}  g6 {[%clk 0:02:53]} 3. Nc3 {[%clk 0:03:01]}  d5 {[%clk 0:02:54]} 4. Nf3 {[%clk 0:03:00]}  Bg7 {[%clk 0:02:54]} 5. Qb3 {[%clk 0:03:00]}  dxc4 {[%clk 0:02:53]} 6. Qxc4 {[%clk 0:03:01]}  O-O {[%clk 0:02:53]} 7. e4 {[%clk 0:03:01]}  a6 {[%clk 0:02:53]} 8. e5 {[%clk 0:03:01]}  Nfd7 {[%clk 0:02:53]} 9. e6 {[%clk 0:03:01]}  fxe6 {[%clk 0:02:51]} 10. Be3 {[%clk 0:02:58]}  Nb6 {[%clk 0:02:39]} 11. Qb3 {[%clk 0:02:57]}  Nd5 {[%clk 0:02:38]} 12. h4 {[%clk 0:02:47]}  Nc6 {[%clk 0:02:34]} 13. Rd1 {[%clk 0:02:43]}  Qd6 {[%clk 0:01:52]} 14. h5 {[%clk 0:02:36]}  Nxe3 {[%clk 0:01:52]} 15. fxe3 {[%clk 0:02:33]}  Qg3+ {[%clk 0:01:52]} 16. Ke2 {[%clk 0:02:30]}  gxh5 {[%clk 0:01:30]} 17. Rxh5 {[%clk 0:02:22]}  Kh8 {[%clk 0:01:26]} 18. Qc2 {[%clk 0:02:19]}  h6 {[%clk 0:01:22]} 19. Ne4 {[%clk 0:02:18]}  Qg6 {[%clk 0:01:19]} 20. Rh4 {[%clk 0:01:44]}  e5 {[%clk 0:01:17]} 21. d5 {[%clk 0:01:39]}  Nb4 {[%clk 0:00:59]} 22. Qc4 {[%clk 0:01:32]}  a5 {[%clk 0:01:00]} 23. a3 {[%clk 0:01:31]}  Na6 {[%clk 0:00:50]} 24. Kf2 {[%clk 0:01:25]}  Bf5 {[%clk 0:00:47]} 25. Bd3 {[%clk 0:01:24]}  Rad8 {[%clk 0:00:37]} 26. Kg1 {[%clk 0:00:39]}  e6 {[%clk 0:00:37]} 27. dxe6 {[%clk 0:00:34]}  Bxe6 {[%clk 0:00:35]} 28. Qc2 {[%clk 0:00:31]}  Bf5 {[%clk 0:00:35]} 29. Rh2 {[%clk 0:00:20]}  Rxd3 {[%clk 0:00:35]} 30. Qxd3 {[%clk 0:00:13]}  Nc5 {[%clk 0:00:35]} 31. Nxc5 {[%clk 0:00:13]}  Bxd3 {[%clk 0:00:35]} 32. Nxd3 {[%clk 0:00:13]}  e4 {[%clk 0:00:35]} 33. Nh4 {[%clk 0:00:14]}  Qg4 {[%clk 0:00:36]} 34. Nf2 {[%clk 0:00:09]}  Rxf2 {[%clk 0:00:36]} 35. Rd8+ {[%clk 0:00:09]}  Rf8 {[%clk 0:00:36]} 36. Rxf8+ {[%clk 0:00:09]}  Bxf8 {[%clk 0:00:37]} 37. Rh3 {[%clk 0:00:09]}  Bd6 {[%clk 0:00:37]} 38. Nf3 {[%clk 0:00:04]}  exf3 {[%clk 0:00:34]} 39. Rxh6+ {[%clk 0:00:03]}  Kg7 {[%clk 0:00:35]} 0-1


[Site "https://www.chess.com"]

[Event "Titled Tuesday Blitz May 9 Late 2023"]
[White "Bitoon, Richard"]
[Black "cristianserban1"]
[WhiteFideId "5201110"]
[WhiteElo "2374"]
[BlackElo "2504"]
[Result "1-0"]
[Round "04"]
[TimeControl "180+2"]
[Date "2023.05.09"]
[WhiteClock "0:00:27"]
[BlackClock "0:00:00"]

1. e4 {[%clk 0:02:39]}  g6 {[%clk 0:03:00]} 2. d4 {[%clk 0:02:39]}  Bg7 {[%clk 0:03:00]} 3. Nc3 {[%clk 0:02:40]}  a6 {[%clk 0:03:01]} 4. Bc4 {[%clk 0:02:39]}  b5 {[%clk 0:02:58]} 5. Bb3 {[%clk 0:02:39]}  e6 {[%clk 0:02:52]} 6. Be3 {[%clk 0:02:39]}  Bb7 {[%clk 0:02:52]} 7. Nf3 {[%clk 0:02:37]}  b4 {[%clk 0:02:51]} 8. Na4 {[%clk 0:02:36]}  Bxe4 {[%clk 0:02:50]} 9. Nc5 {[%clk 0:02:34]}  Bc6 {[%clk 0:02:48]} 10. d5 {[%clk 0:02:35]}  exd5 {[%clk 0:02:48]} 11. Bxd5 {[%clk 0:02:35]}  Ne7 {[%clk 0:02:43]} 12. Bd4 {[%clk 0:02:17]}  O-O {[%clk 0:02:25]} 13. Bxg7 {[%clk 0:02:17]}  Kxg7 {[%clk 0:02:26]} 14. Qd4+ {[%clk 0:02:18]}  Kg8 {[%clk 0:02:22]} 15. Bb3 {[%clk 0:02:16]}  Nf5 {[%clk 0:02:13]} 16. Qxb4 {[%clk 0:02:15]}  Qe7+ {[%clk 0:01:45]} 17. Kd1 {[%clk 0:02:15]}  Re8 {[%clk 0:01:37]} 18. Kc1 {[%clk 0:01:52]}  a5 {[%clk 0:01:32]} 19. Qc3 {[%clk 0:01:51]}  a4 {[%clk 0:01:28]} 20. Bc4 {[%clk 0:01:52]}  Bxf3 {[%clk 0:00:53]} 21. gxf3 {[%clk 0:01:52]}  Qg5+ {[%clk 0:00:53]} 22. Kb1 {[%clk 0:01:37]}  Nd6 {[%clk 0:00:50]} 23. Bd3 {[%clk 0:01:13]}  Qg2 {[%clk 0:00:42]} 24. Re1 {[%clk 0:01:02]}  Qxf2 {[%clk 0:00:33]} 25. Rxe8+ {[%clk 0:01:02]}  Nxe8 {[%clk 0:00:34]} 26. a3 {[%clk 0:00:58]}  d5 {[%clk 0:00:22]} 27. Ka2 {[%clk 0:00:57]}  Qh4 {[%clk 0:00:18]} 28. Re1 {[%clk 0:00:52]}  Nf6 {[%clk 0:00:06]} 29. Re7 {[%clk 0:00:49]}  Ra7 {[%clk 0:00:04]} 30. Re2 {[%clk 0:00:28]}  Nbd7 {[%clk 0:00:04]} 31. Nxd7 {[%clk 0:00:26]}  Nxd7 {[%clk 0:00:04]} 32. Re8+ {[%clk 0:00:26]}  Nf8 {[%clk 0:00:00]} 33. Qc5 {[%clk 0:00:27]} 1-0


[Site "https://www.chess.com"]

[Event "Titled Tuesday Blitz May 9 Late 2023"]
[White "WindWhistler11"]
[Black "Nazari, Arad"]
[BlackFideId "12577324"]
[WhiteElo "2513"]
[BlackElo "2175"]
[Result "0-1"]
[Round "04"]
[TimeControl "180+2"]
[Date "2023.05.09"]
[WhiteClock "0:00:27"]
[BlackClock "0:00:04"]

1. Nf3 {[%clk 0:02:59]}  c5 {[%clk 0:02:59]} 2. d3 {[%clk 0:02:59]}  g6 {[%clk 0:02:59]} 3. Nbd2 {[%clk 0:02:59]}  Bg7 {[%clk 0:02:59]} 4. g3 {[%clk 0:02:59]}  d6 {[%clk 0:02:59]} 5. Bg2 {[%clk 0:03:00]}  e5 {[%clk 0:03:00]} 6. O-O {[%clk 0:03:00]}  Ne7 {[%clk 0:03:00]} 7. c4 {[%clk 0:03:00]}  O-O {[%clk 0:03:01]} 8. a3 {[%clk 0:03:01]}  Nbc6 {[%clk 0:03:02]} 9. Rb1 {[%clk 0:03:01]}  a5 {[%clk 0:03:00]} 10. Ne1 {[%clk 0:03:02]}  Rb8 {[%clk 0:02:58]} 11. Nc2 {[%clk 0:03:01]}  Be6 {[%clk 0:02:57]} 12. b4 {[%clk 0:03:01]}  axb4 {[%clk 0:02:55]} 13. axb4 {[%clk 0:03:02]}  b6 {[%clk 0:02:55]} 14. b5 {[%clk 0:03:02]}  Nd4 {[%clk 0:02:56]} 15. e3 {[%clk 0:02:57]}  Nxc2 {[%clk 0:02:55]} 16. Qxc2 {[%clk 0:02:58]}  d5 {[%clk 0:02:56]} 17. cxd5 {[%clk 0:02:58]}  Nxd5 {[%clk 0:02:55]} 18. Ba3 {[%clk 0:02:53]}  h5 {[%clk 0:02:49]} 19. Nc4 {[%clk 0:02:50]}  h4 {[%clk 0:02:48]} 20. Rfd1 {[%clk 0:02:49]}  hxg3 {[%clk 0:02:33]} 21. hxg3 {[%clk 0:02:50]}  Qg5 {[%clk 0:02:25]} 22. Nd6 {[%clk 0:02:39]}  Rfd8 {[%clk 0:02:19]} 23. Ne4 {[%clk 0:02:37]}  Qh5 {[%clk 0:02:14]} 24. Nc3 {[%clk 0:02:36]}  Nxc3 {[%clk 0:01:56]} 25. Qxc3 {[%clk 0:02:36]}  e4 {[%clk 0:01:56]} 26. Qc2 {[%clk 0:02:28]}  Bg4 {[%clk 0:01:55]} 27. Rd2 {[%clk 0:02:25]}  exd3 {[%clk 0:01:38]} 28. Rxd3 {[%clk 0:02:26]}  Bf5 {[%clk 0:01:37]} 29. e4 {[%clk 0:02:26]}  Bh3 {[%clk 0:01:32]} 30. Rbd1 {[%clk 0:02:09]}  Rd4 {[%clk 0:01:22]} 31. Bb2 {[%clk 0:01:43]}  Bxg2 {[%clk 0:01:22]} 32. Kxg2 {[%clk 0:01:43]}  Rxe4 {[%clk 0:01:22]} 33. Bxg7 {[%clk 0:01:43]}  Kxg7 {[%clk 0:01:17]} 34. Rd7 {[%clk 0:01:37]}  Rbe8 {[%clk 0:00:40]} 35. R1d6 {[%clk 0:01:30]}  Rh8 {[%clk 0:00:25]} 36. Qc3+ {[%clk 0:01:22]}  Rd4 {[%clk 0:00:21]} 37. Qe1 {[%clk 0:00:50]}  Qh3+ {[%clk 0:00:17]} 38. Kf3 {[%clk 0:00:49]}  Qf5+ {[%clk 0:00:11]} 39. Kg2 {[%clk 0:00:48]}  Qh3+ {[%clk 0:00:03]} 40. Kf3 {[%clk 0:00:48]}  Qf5+ {[%clk 0:00:03]} 41. Kg2 {[%clk 0:00:48]}  Qxd7 {[%clk 0:00:03]} 42. Rxd7 {[%clk 0:00:48]}  Rxd7 {[%clk 0:00:04]} 43. Qe5+ {[%clk 0:00:48]}  f6 {[%clk 0:00:04]} 44. Qe6 {[%clk 0:00:47]}  Rb7 {[%clk 0:00:04]} 45. Qc6 {[%clk 0:00:47]}  Rhb8 {[%clk 0:00:05]} 46. g4 {[%clk 0:00:47]}  g5 {[%clk 0:00:05]} 47. Kf3 {[%clk 0:00:46]}  Re7 {[%clk 0:00:04]} 48. Qd6 {[%clk 0:00:44]}  Rbb7 {[%clk 0:00:03]} 49. Kg3 {[%clk 0:00:41]}  Red7 {[%clk 0:00:02]} 50. Qc6 {[%clk 0:00:40]}  Rdc7 {[%clk 0:00:02]} 51. Qd6 {[%clk 0:00:40]}  c4 {[%clk 0:00:03]} 52. Qd2 {[%clk 0:00:39]}  c3 {[%clk 0:00:03]} 53. Qc2 {[%clk 0:00:40]}  Rc5 {[%clk 0:00:04]} 54. f4 {[%clk 0:00:40]}  Rd7 {[%clk 0:00:02]} 55. fxg5 {[%clk 0:00:40]}  fxg5 {[%clk 0:00:02]} 56. Qg2 {[%clk 0:00:37]}  c2 {[%clk 0:00:02]} 57. Qd2 {[%clk 0:00:27]}  Rxd2 {[%clk 0:00:02]} 58. Kf3 {[%clk 0:00:28]}  Rd4 {[%clk 0:00:02]} 59. Ke3 {[%clk 0:00:28]}  Rb4 {[%clk 0:00:03]} 60. Kf3 {[%clk 0:00:29]}  Rc3+ {[%clk 0:00:03]} 61. Ke2 {[%clk 0:00:29]}  Rb2 {[%clk 0:00:03]} 62. Kd2 {[%clk 0:00:27]}  c1=Q# {[%clk 0:00:04]} 0-1


[Site "https://www.chess.com"]

[Event "Titled Tuesday Blitz May 9 Late 2023"]
[White "Santos Flores, Alberto"]
[Black "Bjelobrk, Igor"]
[WhiteFideId "3601234"]
[BlackFideId "4300726"]
[WhiteElo "2235"]
[BlackElo "2319"]
[Result "1/2-1/2"]
[Round "04"]
[TimeControl "180+2"]
[Date "2023.05.09"]
[WhiteClock "0:00:09"]
[BlackClock "0:00:23"]

1. d4 {[%clk 0:02:13]}  e6 {[%clk 0:02:57]} 2. Nf3 {[%clk 0:02:12]}  c5 {[%clk 0:02:54]} 3. c3 {[%clk 0:02:11]}  d5 {[%clk 0:02:46]} 4. Bf4 {[%clk 0:02:10]}  Bd6 {[%clk 0:02:46]} 5. Bg3 {[%clk 0:02:09]}  Ne7 {[%clk 0:02:46]} 6. e3 {[%clk 0:02:09]}  Nbc6 {[%clk 0:02:41]} 7. Nbd2 {[%clk 0:02:08]}  b6 {[%clk 0:02:40]} 8. Bd3 {[%clk 0:02:08]}  Bb7 {[%clk 0:02:40]} 9. Qe2 {[%clk 0:02:02]}  h6 {[%clk 0:02:40]} 10. Ne5 {[%clk 0:01:56]}  Qc7 {[%clk 0:02:22]} 11. f4 {[%clk 0:01:41]}  Nf5 {[%clk 0:02:02]} 12. Bf2 {[%clk 0:01:36]}  Be7 {[%clk 0:01:49]} 13. g4 {[%clk 0:01:31]}  Nd6 {[%clk 0:01:49]} 14. O-O {[%clk 0:01:23]}  O-O-O {[%clk 0:01:40]} 15. a4 {[%clk 0:01:17]}  Kb8 {[%clk 0:01:33]} 16. Bb5 {[%clk 0:01:12]}  Nxe5 {[%clk 0:01:18]} 17. fxe5 {[%clk 0:01:12]}  Nxb5 {[%clk 0:01:19]} 18. axb5 {[%clk 0:01:12]}  h5 {[%clk 0:01:08]} 19. gxh5 {[%clk 0:01:09]}  g6 {[%clk 0:01:06]} 20. hxg6 {[%clk 0:01:09]}  Rdg8 {[%clk 0:01:06]} 21. Bg3 {[%clk 0:01:09]}  Rxg6 {[%clk 0:01:07]} 22. Rxf7 {[%clk 0:01:08]}  Qd8 {[%clk 0:01:01]} 23. Raf1 {[%clk 0:00:57]}  Bc8 {[%clk 0:00:47]} 24. Qf3 {[%clk 0:00:53]}  Qe8 {[%clk 0:00:42]} 25. Rf2 {[%clk 0:00:48]}  Bd8 {[%clk 0:00:42]} 26. Rf8 {[%clk 0:00:33]}  Rxf8 {[%clk 0:00:41]} 27. Qxf8 {[%clk 0:00:34]}  Qd7 {[%clk 0:00:38]} 28. Qd6+ {[%clk 0:00:32]}  Bc7 {[%clk 0:00:38]} 29. Qxd7 {[%clk 0:00:30]}  Bxd7 {[%clk 0:00:39]} 30. Rf7 {[%clk 0:00:29]}  Bxb5 {[%clk 0:00:39]} 31. Kf2 {[%clk 0:00:25]}  Bd3 {[%clk 0:00:38]} 32. Rf6 {[%clk 0:00:23]}  Bd8 {[%clk 0:00:35]} 33. Rxg6 {[%clk 0:00:21]}  Bxg6 {[%clk 0:00:35]} 34. Nf3 {[%clk 0:00:20]}  Kc8 {[%clk 0:00:29]} 35. Bh4 {[%clk 0:00:21]}  Bc7 {[%clk 0:00:29]} 36. Be7 {[%clk 0:00:19]}  Kd7 {[%clk 0:00:29]} 37. Bf8 {[%clk 0:00:19]}  c4 {[%clk 0:00:27]} 38. h4 {[%clk 0:00:18]}  b5 {[%clk 0:00:27]} 39. Kg3 {[%clk 0:00:18]}  Bh5 {[%clk 0:00:27]} 40. Kf4 {[%clk 0:00:17]}  Bd8 {[%clk 0:00:27]} 41. Ng5 {[%clk 0:00:15]}  a5 {[%clk 0:00:25]} 42. Bg7 {[%clk 0:00:11]}  Be7 {[%clk 0:00:24]} 43. Bf6 {[%clk 0:00:11]}  Bf8 {[%clk 0:00:23]} 44. Nf3 {[%clk 0:00:10]}  Bh6+ {[%clk 0:00:23]} 45. Bg5 {[%clk 0:00:09]}  Bf8 {[%clk 0:00:23]} 46. Bf6 {[%clk 0:00:09]}  Bh6+ {[%clk 0:00:23]} 47. Bg5 {[%clk 0:00:09]}  Bf8 {[%clk 0:00:23]} 48. Bf6 {[%clk 0:00:09]} 1/2-1/2


[Site "https://www.chess.com"]

[Event "Titled Tuesday Blitz May 9 Late 2023"]
[White "Wadsworth, Matthew J"]
[Black "Mihajlov, Sebastian"]
[WhiteFideId "415804"]
[BlackFideId "1512110"]
[WhiteElo "2347"]
[BlackElo "2478"]
[Result "0-1"]
[Round "04"]
[TimeControl "180+2"]
[Date "2023.05.09"]
[WhiteClock "0:00:11"]
[BlackClock "0:01:21"]

1. Nf3 {[%clk 0:02:59]}  Nf6 {[%clk 0:02:56]} 2. d4 {[%clk 0:02:59]}  g6 {[%clk 0:02:56]} 3. Bf4 {[%clk 0:02:59]}  Bg7 {[%clk 0:02:56]} 4. e3 {[%clk 0:02:58]}  O-O {[%clk 0:02:57]} 5. Nbd2 {[%clk 0:02:52]}  d5 {[%clk 0:02:49]} 6. Bd3 {[%clk 0:02:46]}  c5 {[%clk 0:02:47]} 7. c3 {[%clk 0:02:45]}  Nc6 {[%clk 0:02:47]} 8. h3 {[%clk 0:02:44]}  Nd7 {[%clk 0:02:48]} 9. O-O {[%clk 0:02:30]}  e5 {[%clk 0:02:45]} 10. dxe5 {[%clk 0:02:30]}  Ndxe5 {[%clk 0:02:43]} 11. Nxe5 {[%clk 0:02:30]}  Nxe5 {[%clk 0:02:44]} 12. Bc2 {[%clk 0:02:21]}  Be6 {[%clk 0:02:40]} 13. Nf3 {[%clk 0:02:17]}  Nc6 {[%clk 0:02:40]} 14. Qe2 {[%clk 0:02:09]}  Qb6 {[%clk 0:02:28]} 15. Rab1 {[%clk 0:02:06]}  d4 {[%clk 0:02:20]} 16. exd4 {[%clk 0:02:04]}  cxd4 {[%clk 0:02:20]} 17. cxd4 {[%clk 0:01:24]}  Bxa2 {[%clk 0:02:17]} 18. Rbd1 {[%clk 0:01:16]}  Qxb2 {[%clk 0:01:55]} 19. d5 {[%clk 0:01:14]}  Nb4 {[%clk 0:01:54]} 20. Rd2 {[%clk 0:00:46]}  Nxd5 {[%clk 0:01:26]} 21. Bxg6 {[%clk 0:00:40]}  Nxf4 {[%clk 0:01:24]} 22. Bxh7+ {[%clk 0:00:36]}  Kh8 {[%clk 0:01:20]} 23. Rxb2 {[%clk 0:00:30]}  Nxe2+ {[%clk 0:01:20]} 24. Rxe2 {[%clk 0:00:11]}  Bc4 {[%clk 0:01:21]} 0-1


[Site "https://www.chess.com"]